Cogmind - Beta 13 @@@ ROGUE MODE // 2024.04.08 @ 21:08:29 Player: Skysub Result: Destroyed by W4-F5C(R) with Subdweller Machine Gun Performance ------------- Evolutions (0) 0 Regions Visited (3) 600 Robots Destroyed (20) 100 Value Destroyed (418) 418 Prototype IDs (0) 0 Alien Tech Used (0) 0 Bonus (0) 0 TOTAL SCORE: 1118 Bonus ------- None Cogmind --------- Core Integrity 0/250 Matter 264/300 Energy 250/250 System Corruption 0% Temperature Cool (9) Movement Walking (190) Ox1 Location -10/Subcaves Parts ------- > --- POWER (1) -------- Ion Engine > --- PROPULSION (2) --- Aluminum Leg Aluminum Leg > --- UTILITY (2) ------ Scrap Shield > --- WEAPON (2) ------- Light Assault Rifle Light Assault Rifle > --- INVENTORY (5) ---- Improved Heat Sink Structural Scanner Sensor Array Improved Terrain Scanner Terrain Scan Processor Peak State ------------ > --- POWER ------------ Ion Engine > --- PROPULSION ------- Aluminum Leg Aluminum Leg > --- UTILITY ---------- Scrap Shield > --- WEAPON ----------- Light Assault Rifle Light Assault Rifle > --- INVENTORY -------- Improved Heat Sink Structural Scanner Sensor Array Improved Terrain Scanner Terrain Scan Processor [Rating: 10] Favorites ----------- Power Ion Engine Engine Ion Engine Propulsion Aluminum Leg Leg Aluminum Leg Utility Structural Scanner Device Structural Scanner Storage Small Storage Unit Protection Scrap Shield Weapon Light Assault Rifle Energy Gun Particle Gun Ballistic Gun Light Assault Rifle Launcher Grenade Launcher Special Weapon Mining Laser Build | -11 -10 -10 -10 ------- Run | Yrd Mat Min Sub Slots Evolved . | . . . . Power . | . . . . Propulsion . | . . . . Utility . | . . . . Weapon . | . . . . Parts Attached 23 | 6 5 10 2 Power 2 | 1 . 1 . Engine 2 | 1 . 1 . Core . | . . . . Reactor . | . . . . Propulsion 4 | 2 . 2 . Treads . | . . . . Leg 4 | 2 . 2 . Wheel . | . . . . Hover . | . . . . Flight . | . . . . Utility 6 | 1 3 1 1 Device 3 | . 3 . . Storage 2 | 1 . 1 . Processor . | . . . . Hackware . | . . . . Protection 1 | . . . 1 Artifact . | . . . . Weapon 11 | 2 2 6 1 Energy Gun 3 | . 1 2 . Energy Cannon . | . . . . Ballistic Gun 4 | 2 . 1 1 Ballistic Cannon . | . . . . Launcher 3 | . 1 2 . Special Weapon 1 | . . 1 . Impact Weapon . | . . . . Slashing Weapon . | . . . . Piercing Weapon . | . . . . Special Melee Weapon . | . . . . Unidentified Prototypes . | . . . . Parts Lost 3 | . 1 2 . Power . | . . . . Propulsion 1 | . . 1 . Utility . | . . . . Weapon 2 | . 1 1 . Highest Loss Streak 1 | . 1 1 . To Critical Strikes . | . . . . Average Slot Usage (%) 97 | . 93 99 87 Engine 14 | . 14 14 14 Leg 28 | . 28 28 28 Device 16 | . 10 19 2 Storage 8 | . 11 8 2 Energy Gun 9 | . 3 12 . Ballistic Gun 16 | . 19 14 28 Launcher 1 | . 4 . . Naked Turns . | . . . . Heaviest Build 25 | 10 13 15 25 Greatest Support 20 | 20 20 20 20 Greatest Overweight (x) 1 | . . . 1 Average Overweight (x) . | . . . . Largest Inventory Capacity 8 | 8 8 8 8 Average Capacity 6 | 7 7 6 5 Most Carried 8 | . 5 8 8 Average Carried 4 | . 1 5 5 Final Capacity 8 | 8 5 8 5 Final Carried 8 | . 5 8 5 Class Distribution -------------------- 82% | Mutant 17% | Scavenger-Mutant Dominant Class ---------------- Mutant | -10/Materials Mutant | -10/Mines Scavenger-Mutant | -10/Subcaves Resources | -11 -10 -10 -10 ----------- Run | Yrd Mat Min Sub Matter Collected 493 | 185 131 177 . Remotely . | . . . . Salvage Created 399 | . 136 216 47 Parts 42 | . 6 33 3 Haulers Intercepted . | . . . . Recyclers Shooed 2 | . 2 . . Parts Field Recycled . | . . . . Retrieved Matter . | . . . . Parts Self-Destructed 4 | . . . 4 Prevented . | . . . . Kills | -11 -10 -10 -10 ------- Run | Yrd Mat Min Sub Combat Hostiles Destroyed 15 | . 4 10 1 Guns 10 | . 2 7 1 AOE 5 | . 2 3 . Classes Destroyed 5 | . 1 3 1 Builder 3 | . . 3 . Tunneler 2 | . . 2 . Swarmer 9 | . . 9 . Grunt 5 | . 4 1 . Subdweller 1 | . . . 1 Best Kill Streak 3 | . 2 3 1 Combat Bots Only 3 | . 2 3 1 Max Kills in Single Turn 3 | . 1 3 1 Gunslinging 1 | . . 1 . Exploded 3 | . 1 3 . Melee . | . . . . Uniques/NPCs Destroyed . | . . . . Combat | -11 -10 -10 -10 -------- Run | Yrd Mat Min Sub Hostile Shots Fired 96 | . 42 41 13 Missed 24 | . 13 8 3 Damage Taken 987 | . 424 313 250 Core 261 | . 89 110 62 Absorbed by Shields . | . . . . Core Remaining (%) 100 | 100 . . . Volleys Fired 78 | . 36 39 3 Largest 2 | . 2 2 2 Hottest 100 | . 50 100 40 Shots Fired 133 | . 53 74 6 Gun 126 | . 50 70 6 Cannon . | . . . . Launcher 4 | . 3 1 . Special 3 | . . 3 . Kinetic 92 | . 50 36 6 Thermal 37 | . . 37 . Explosive 4 | . 3 1 . Electromagnetic . | . . . . Robot Hit Streak 8 | . 5 6 8 Robot Miss Streak 4 | . 3 4 . Penetration Max . | . . . . Secondary Targets 2 | . . 1 1 Max Gunslinging Chain 1 | . . 1 1 Shots Hit Robots 74 | . 33 35 6 Core Hits 34 | . 14 18 2 Critical Kills . | . . . . Critical Parts Destroyed 1 | . 1 . . Critical Strikes 2 | . 1 1 . Burn 1 | . . 1 . Destroy 1 | . 1 . . Melee Attacks . | . . . . Impact . | . . . . Slashing . | . . . . Piercing . | . . . . Sneak Attacks . | . . . . Combat Hostiles . | . . . . Follow-up Attacks . | . . . . Damage Inflicted 1027 | . 420 557 50 Guns 719 | . 252 417 50 Cannons . | . . . . Explosions 292 | . 153 139 . Melee . | . . . . Ramming 16 | . 15 1 . Kinetic 452 | . 252 150 50 Thermal 267 | . . 267 . Explosive 292 | . 153 139 . Electromagnetic . | . . . . Impact . | . . . . Slashing . | . . . . Piercing . | . . . . Highest Corruption . | . . . . Average Corruption . | . . . . Corruption Purged . | . . . . Corruption Blocked . | . . . . Overload Shots . | . . . . Overflow Damage 2 | . . 2 . Projectiles . | . . . . Explosions 2 | . . 2 . Melee . | . . . . Knockbacks . | . . . . Impact . | . . . . Kinetic . | . . . . Secondary . | . . . . Self-Inflicted Damage 26 | . 5 21 . Shots 2 | . 1 1 . Rammed . | . . . . Targets Rammed 4 | . 2 2 . Kicked 4 | . 2 2 . Crushed . | . . . . Highest Temperature 276 | . 34 276 . Average Temperature 65 | . 15 75 . Received Heat Transfer 303 | . 222 45 36 Effects 1 | . . 1 . Energy Bleed 1 | . . 1 . Siege Activations . | . . . . Robots Corrupted . | . . . . Combat Hostiles . | . . . . Parts Fried . | . . . . Impact Corruptions . | . . . . Robots Melted . | . . . . Combat Hostiles . | . . . . Parts Melted 3 | . . 2 1 Heat Transferred 703 | . . 703 . Parts Sabotaged . | . . . . Parts Stolen . | . . . . Parts Stripped . | . . . . Power Chain Reactions . | . . . . Alert | -11 -10 -10 -10 ------- Run | Yrd Mat Min Sub Peak Influence 170 | . 169 170 . Initial . | . . . . Average 77 | . 73 82 . Maximum Alert Level . | . . . . Low Security (%) 100 | 100 100 100 . Level 1 . | . . . . Level 2 . | . . . . Level 3 . | . . . . Level 4 . | . . . . Level 5 . | . . . . High Security . | . . . . Max Security . | . . . . Squads Dispatched . | . . . . Investigation . | . . . . Extermination . | . . . . Reinforcement . | . . . . Assault . | . . . . Garrison . | . . . . Intercept . | . . . . Searches Triggered . | . . . . Construction Impeded . | . . . . Haulers Reinforced . | . . . . Active Scanning Responses . | . . . . Cargo Convoy Interrupts . | . . . . Stealth | -11 -10 -10 -10 --------- Run | Yrd Mat Min Sub Distress Signals . | . . . . Communications Jammed . | . . . . Distress Signals . | . . . . Times Spotted 23 | . 6 10 7 Peak Tracking Total 7 | . 2 3 7 Tactical Retreats . | . . . . Traps | -11 -10 -10 -10 ------- Run | Yrd Mat Min Sub Traps Triggered 1 | . 1 . . Indirectly . | . . . . Trap Hack Attempts . | . . . . Triggered . | . . . . Disarmed . | . . . . Reprogrammed . | . . . . Reused . | . . . . Traps Extracted . | . . . . Installed . | . . . . Triggered . | . . . . Machines | -11 -10 -10 -10 ---------- Run | Yrd Mat Min Sub Machines Disabled 5 | . 2 3 . Max in Single Turn 1 | . 1 1 . Machines Repaired . | . . . . Machines Dismantled . | . . . . Machines Sabotaged . | . . . . Overloaded Fab Kills . | . . . . Hacking | -11 -10 -10 -10 --------- Run | Yrd Mat Min Sub Machines Accessed 3 | . 3 . . Terminals 2 | . 2 . . Fabricators . | . . . . Repair Stations . | . . . . Recycling Units 1 | . 1 . . Scanalyzers . | . . . . Garrison Access . | . . . . Total Hacks 15 | . 15 . . Successful 8 | . 8 . . Failed 7 | . 7 . . Catastrophic . | . . . . Database Lockouts . | . . . . Manual . | . . . . Terminals 10 | . 10 . . Fabricators . | . . . . Repair Stations . | . . . . Recycling Units 5 | . 5 . . Scanalyzers . | . . . . Garrison Access . | . . . . Terminal Hacks 6 | . 6 . . Dispatch Records 1 | . 1 . . Investigation Status 1 | . 1 . . Hauler Manifests 1 | . 1 . . Registered Components 1 | . 1 . . Registered Prototypes 1 | . 1 . . Zone Layout 1 | . 1 . . Fabricator Hacks . | . . . . Repair Station Hacks . | . . . . Recycling Unit Hacks 2 | . 2 . . Retrieve Matter 1 | . 1 . . Retrieve Components 1 | . 1 . . Scanalyzer . | . . . . Garrison Access Hacks . | . . . . Unauthorized Hacks . | . . . . Terminals . | . . . . Fabricators . | . . . . Repair Stations . | . . . . Recycling Units . | . . . . Scanalyzers . | . . . . Garrison Access . | . . . . Data Cores Recovered . | . . . . Used . | . . . . Hacking Detections 3 | . 3 . . Full Trace Events . | . . . . Feedback Events . | . . . . Feedback Blocked . | . . . . Robot Schematics Acquired . | . . . . Robots Built . | . . . . Authchips . | . . . . Time . | . . . . Total Robot Build Rating . | . . . . Part Schematics Acquired . | . . . . Parts Built . | . . . . Authchips . | . . . . Time . | . . . . Total Part Build Rating . | . . . . Parts Repaired . | . . . . Time . | . . . . Parts Recycled . | . . . . Recycled Matter . | . . . . Retrieved Matter . | . . . . Retrieved Components 3 | . 3 . . Parts Scanalyzed . | . . . . Part Schematics Acquired . | . . . . Parts Damaged . | . . . . Bothacking | -11 -10 -10 -10 ------------ Run | Yrd Mat Min Sub Used RIF Installer . | . . . . Robots Hacked . | . . . . Non-combat . | . . . . Combat . | . . . . Robot Hacks Applied . | . . . . Relay Couplers Released . | . . . . Fabnet Peak Effective % . | . . . . Robots Rewired . | . . . . Allies Hacked . | . . . . Hacks Repelled . | . . . . Allies | -11 -10 -10 -10 -------- Run | Yrd Mat Min Sub Total Allies . | . . . . Largest Group . | . . . . Highest-Rated Group . | . . . . Highest-Rated Ally . | . . . . Total Orders . | . . . . Ally Attacks . | . . . . Total Damage . | . . . . Kills . | . . . . Allies Corrupted . | . . . . Allies Melted . | . . . . Intel | -11 -10 -10 -10 ------- Run | Yrd Mat Min Sub Robot Analysis Total . | . . . . Derelict Logs Recovered 2 | . . 2 . Drone Launches . | . . . . Drone Recoveries . | . . . . Exploration | -11 -10 -10 -10 ------------- Run | Yrd Mat Min Sub Turns Passed 1777 | 54 403 1192 128 Spaces Moved 1223 | 42 250 871 60 Core 7 | 7 . . . Treads . | . . . . Legs 1216 | 35 250 871 60 Wheels . | . . . . Hover . | . . . . Flight . | . . . . Fastest Speed 50 | 50 120 120 120 Average Speed 122 | 108 120 120 170 Slowest Speed 190 | 120 120 120 190 Overloaded Moves . | . . . . Propulsion Burnouts . | . . . . Robots Hopped . | . . . . Cave-ins Triggered . | . . . . Exploration Rate (%) 37 | 3 41 98 6 Regions Visited 3 Branch Regions 2 Pre-discovered Areas 2 | . . 2 . Known Exits Taken . | . . . . Unknown Exits Taken 3 | 1 1 1 . Scrap Searched 2 | . . 2 . Spaces Dug . | . . . . Terrain Destroyed 18 | . 13 5 . Melee . | . . . . Projectile . | . . . . AOE 18 | . 13 5 . Terrain Rammed . | . . . . Walls Destroyed . | . . . . Machines Disabled . | . . . . Actions | -11 -10 -10 -10 --------- Run | Yrd Mat Min Sub Total 1382 | 47 308 944 83 Wait 28 | . 8 8 12 Move 1220 | 41 249 870 60 Hop . | . . . . Pick Up 15 | . 6 9 . Fast Attach 9 | 6 2 . 1 Attach 4 | . 1 3 . Detach 3 | . 1 1 1 Swap 10 | . 2 7 1 Drop 11 | . 1 5 5 Fire 78 | . 36 39 3 Melee . | . . . . Ram . | . . . . Kick 4 | . 2 2 . Crush . | . . . . Escape Stasis . | . . . . Rewire . | . . . . Trap . | . . . . Miscellaneous . | . . . . Route ------- -11/Scrapyard -10/Materials (discovered 3 exits: [Mat] / [*Min x2]) -10/Mines (discovered 3 exits: [*Mat x2] / [*Sub]) -10/Subcaves History --------- Turn | Location | Event 3 | -11/Scrapyard | Discovered new exit (range 15) 55 | -11/Scrapyard | Entered Materials 302 | -10/Materials | Build established: Mutant 363 | -10/Materials | Discovered new exit (range 8) 402 | -10/Materials | Discovered new exit (range 19) 449 | -10/Materials | Discovered new exit (range 8) 458 | -10/Materials | Entered Mines 489 | -10/Mines | Met a Derelict bent on vengeance 489 | -10/Mines | Discovered new exit (range 10) 512 | -10/Mines | Core integrity fell below 50% 554 | -10/Mines | Learned Materials emergency access door positions 705 | -10/Mines | Learned location of Zion (-7) 933 | -10/Mines | Discovered new exit (range 12) 1034 | -10/Mines | Discovered new exit (range 9) 1036 | -10/Mines | Learned location of Storage (-9) 1650 | -10/Mines | Entered Subcaves 1761 | -10/Subcaves | Ambushed by swarm of Subdwellers 1773 | -10/Subcaves | Core integrity fell below 20% 1778 | -10/Subcaves | Destroyed by W4-F5C(R) with Subdweller Machine Gun Last Messages --------------- PO-0C3(R) comes tumbling into view. 8M-2OV(h): "The Subs are coming!" HV Slug penetrates PO-0C3(R). W4-F5C(R) emerges from the Twisted Machinery. HU-IWS(R) emerges from the Twisted Machinery. H3-8OT(R) emerges from the Twisted Machinery. BM-6S3(R) emerges from the Twisted Machinery. 12-LCA(g): "Sorry we're late! Had another grouchy Sub to deal with. Who's the new fellow?" HV Slug penetrates BM-6S3(R). BM-6S3(R) suffers critical hit (Destroy). BM-6S3(R) knocked back. HV Slug penetrates H3-8OT(R). SH-96I(R) emerges from the Twisted Machinery. 8M-2OV(h) destroyed. PO-0C3(R) suffers critical hit (Burn). GF-2O6(R) emerges from the Twisted Machinery. Sub. Monowheel melted. H3-8OT(R) destroyed. Switching to secondary target: PO-0C3(R). Map ----- +----------------------------------------------------+ | ?????????????????## ##????????????????? | | ?????????????????## ! ##????????????????? | | ?????????????????### = [###???????????????? | | ?????????????????##### #####!|###???????????????? | | ??????????????????########### ##???????????????? | | ????????????????????#####??## ##???????????????? | | ???????????????????????????## ##???????????????? | | ????????????????????######### ###??????????????? | | ????????????????????# ## # #??????????????? | | ????????????????????# ##?????????????? | | ???????????????????## ##?????????????? | | ???????????????????# # #### ##????????????? | | ???????????????????## ###### ##????????????? | | ????????????????????# #?? ### ##???????????? | | ????????????????????# #??? ### ##???????????? | | ????????????????????# ##?????## ###???????????? | | ????????????#???????# ##?????? ###???????????? | | ????????????# ??????# #?????? #????????????? | | ????????????# ????## #?????? #????????????? | | ????????????# ???# ##????? ####????????????? | | ?????????????# ?##" ##????? ####?????????????? | | ???????? ????## #"# ##???# #????????????????? | | ??????? #; "" RR #### #??#??????????????? | | ???????# RR g; g # ##?????????????? | | ????????# % R !%= g ##????????????? | | ????????### [%* @ R #????????????? | | ??????????# # ;# #???????????? | | ??????????# #######? #???????????? | | ??????????### ##????????## #???????????? | | ????????????# ## #????????????##???????????? | | ??????????? ?# #?????????????????????????? | | ????????? ??# ?????????????????????????? | | ????????? ?? ?????????????????????????? | | ?????????? ?? ?????????????????????????? | | ?????????????? ?????????????????????????? | | ?????????????## ##?????????????????????????? | | ??????????????### #???????????????????????????? | | ????????????????# #????????????????????????????? | | ????????????????####?????????????????????????????? | | ?????????????????????????????????????????????????? | | ?????????????????????????????????????????????????? | | ?????????????????????????????????????????????????? | | ?????????????????????????????????????????????????? | | ?????????????????????????????????????????????????? | | ?????????????????????????????????????????????????? | | ?????????????????????????????????????????????????? | | ?????????????????????????????????????????????????? | | ?????????????????????????????????????????????????? | | ?????????????????????????????????????????????????? | | ?????????????????????????????????????????????????? | +----------------------------------------------------+ Best States ------------- Heat Dissipation 25 Energy Generation 10 Energy Capacity 250 Matter Stores 300 Matter Capacity 300 Sight Range 16 Robot Scan Range 14 Terrain Scan Density 10 Armor Coverage 800 Evasion (%) 55 Item Schematics ----------------- None Robot Schematics ------------------ None Fabricated ------------ Nothing Alien Tech Used ----------------- None Achievements -------------- None Challenges ------------ None Game ------ Seed ActuatorExperimentalSplitter Manual? 0 Play Time 00:23:05 Cumulative 13.7 hours Start 2024.04.08 @ 20:47:52 End 2024.04.08 @ 21:08:29 Sessions 1 Manual Loads 0 Difficulty Rogue Special Mode None Game No. 9 Rogue 9 Adventurer 0 Explorer 0 Win Type - Total 0 Types 0/0/0/0/0/0/0/0/0 Lore% 5 Gallery% 18 Achievement% 16 Wizard Run 0 Options --------- Layout 1 ASCII 0 Keyboard 1 Movement Numpad Keybinds 0 Fullscreen 1 Font 32/SmallcapsGlow Map View 77x35 Zoom Use 0% Tactical HUD 0 Map Filters NONE Filters NONE Steam 1 RUN: b104b9f0-509a-4dfa-8aa2-e564bedca63c